bitfinex/quotes_ETHUSD_20251116
["timestamp","ask_amount","ask_price","bid_price","bid_amount"]
[1763295482889,0.4598,3179.5,3178.4,1.82661046]
[1763295483207,0.4598,3179.5,3178.4,0.69286966]
[1763295483407,0.002,3179.5,3178.5,2.1477333]
[1763295483706,0.002,3179.5,3178.7,1.6930333]
[1763295484216,0.002,3179.5,3179.4,0.4603]
[1763295484367,0.002,3179.5,3179.4,0.915]
[1763295484690,0.002,3179.5,3179.2,1.1337408]
[1763295484991,0.0783,3179.5,3179.1,1.6930333]
[1763295485160,0.0783,3179.5,3179.1,1.91151663]
[1763295485492,0.002,3179.5,3179.4,0.4518]
[1763295486719,0.002,3179.5,3179.2,0.4918]
[1763295486936,0.002,3179.5,3179.1,1.91151663]
[1763295488215,0.002,3179.5,3179.1,0.21848333]
[1763295488429,0.002,3179.5,3179.1,0.71028333]
[1763295488637,0.002,3179.5,3179.2,0.24033166]
[1763295488998,0.0763,3179.3,3178.8,1.6930333]
[1763295489193,0.4844,3179.5,3178.8,1.6930333]
[1763295489406,0.4824,3179.4,3178.8,1.6930333]
[1763295489609,0.4824,3179.4,3178.6,1.9316236]
[1763295489810,0.002,3179.5,3178.6,2.4234236]
[1763295489993,0.002,3179.5,3179.4,1.357304]
[1763295490193,0.002,3179.5,3179.4,4.71267034]
[1763295490402,0.002,3179.5,3179.4,7.44479116]
[1763295490603,0.002,3179.5,3179.4,3.10878006]
[1763295491532,0.002,3179.5,3179.4,3.14023253]
[1763295491730,0.002,3179.5,3179.4,3.45425578]
[1763295491897,0.002,3179.5,3179.4,3.96654365]
[1763295492249,0.002,3179.9,3179.8,0.905504]
[1763295492430,0.002,3179.9,3179.8,5.25206057]
[1763295492636,1.12666818,3183.2,3179.8,5.25206057]
[1763295492637,0.4824,3182.8,3181.3,0.5]
[1763295492820,0.4824,3183.0,3181.7,0.4518]
[1763295493860,0.4824,3183.0,3181.1,0.1962]
[1763295493861,0.2458,3181.8,3181.1,0.1962]
[1763295494157,0.0018,3181.7,3181.1,0.1962]
[1763295494375,0.18,3182.3,3181.2,0.4918]
[1763295494526,0.18,3182.3,3181.7,0.4713]
[1763295495122,0.18,3182.3,3181.2,0.405504]
[1763295495469,0.6777,3182.3,3181.2,1.07934848]
[1763295495669,0.4977,3182.3,3181.2,1.07934848]
[1763295495871,0.4977,3182.3,3181.5,0.405504]
[1763295496024,0.4977,3182.2,3181.3,0.405504]
[1763295496222,0.4977,3182.2,3181.3,0.905504]
[1763295496752,0.4977,3182.2,3181.2,0.405504]
[1763295496947,0.4977,3182.2,3181.2,0.905504]
[1763295497646,0.002,3183.0,3181.2,0.905504]
[1763295497975,0.002,3183.0,3182.5,0.405504]
[1763295498176,0.002,3183.0,3182.4,0.5]
[1763295498381,0.0788,3182.5,3182.1,0.405504]
[1763295498528,0.0788,3182.5,3181.9,0.405504]
[1763295498730,0.4704,3182.6,3181.9,0.405504]
[1763295499638,0.002,3183.0,3182.1,0.905504]
[1763295500029,0.002,3183.0,3182.1,1.101604]
[1763295500365,0.002,3183.0,3182.5,0.405504]
[1763295500555,0.002,3183.0,3182.9,1.381204]
[1763295501072,0.002,3183.0,3182.9,1.850304]
[1763295501276,0.002,3183.0,3182.9,2.0353344]
[1763295501492,0.002,3183.0,3182.9,2.51481903]
[1763295501640,0.002,3183.0,3182.9,3.1690752]
[1763295502343,0.002,3183.0,3182.9,3.64855983]
[1763295502552,0.002,3183.0,3182.9,3.1690752]
[1763295503162,0.4704,3184.3,3183.3,0.405504]
[1763295503476,0.15783808,3187.3,3183.5,0.5]
[1763295503477,0.4704,3184.5,3183.5,0.5]
[1763295504546,0.4704,3184.7,3183.6,0.405504]
[1763295504739,0.4704,3184.7,3183.5,0.5]
[1763295504945,0.4704,3184.7,3183.2,0.601604]
[1763295505347,0.4704,3184.7,3183.5,0.405504]
[1763295505970,0.4704,3184.7,3183.5,0.874604]
[1763295506185,0.4704,3184.7,3183.7,0.5]
[1763295507202,0.4704,3186.8,3184.6,0.6718]
[1763295507348,0.18,3185.3,3184.6,0.4757]
[1763295507694,0.257,3184.7,3183.8,0.3761]
[1763295507872,0.257,3184.7,3183.5,0.6961]
[1763295508347,0.4675,3184.6,3183.6,0.405504]
[1763295508552,0.4675,3184.6,3183.5,0.1961]
[1763295508753,0.2173,3183.6,3183.0,0.1961]
[1763295508948,0.2173,3183.6,3182.8,0.5]
[1763295509172,0.2173,3183.6,3182.9,0.03141788]
[1763295509484,0.1362,3183.9,3183.2,0.5]
[1763295509698,0.1362,3183.9,3183.3,0.03141394]
[1763295509855,0.1362,3183.9,3183.2,0.5]
[1763295510298,0.6066,3183.9,3182.9,0.905504]
[1763295510785,0.4704,3183.8,3182.9,0.905504]
[1763295511888,0.4704,3183.8,3182.5,0.5]
[1763295511889,0.0788,3183.0,3182.5,0.5]
[1763295512187,0.0788,3183.0,3182.3,0.5]
[1763295512390,0.1782,3182.9,3182.1,1.1652]
[1763295512692,0.1782,3182.9,3182.1,0.6961]
[1763295512886,0.1782,3182.9,3182.2,0.4691]
[1763295513189,0.1792,3183.2,3182.2,0.4691]
[1763295513392,0.1362,3183.9,3183.2,0.4757]
[1763295513591,0.1362,3183.9,3183.1,0.5]
[1763295513758,0.6066,3183.9,3182.9,0.405504]
[1763295514164,0.4704,3183.8,3182.9,0.405504]
[1763295514386,0.002,3183.4,3182.9,0.405504]
[1763295515089,0.0794,3183.0,3182.1,0.1961]
[1763295515297,0.4698,3183.3,3182.1,0.6602]
[1763295515502,0.002,3183.4,3182.2,0.5]
[1763295515808,0.002,3183.4,3181.8,0.03142875]
[1763295515809,0.4698,3183.3,3181.9,0.47948463]
[1763295515962,0.4698,3183.3,3181.8,0.4641]
[1763295516162,0.4698,3183.3,3181.9,0.5]
[1763295517198,0.4698,3183.3,3181.8,0.4641]
[1763295518277,0.002,3183.4,3181.9,0.405504]
[1763295518470,0.4718,3183.4,3182.4,0.5]
[1763295518670,0.4718,3183.4,3182.5,0.1812]
[1763295519703,0.002,3183.4,3182.5,0.6453]
[1763295519999,0.002,3183.4,3182.4,0.5]
[1763295520167,0.4698,3183.3,3182.5,0.405504]
[1763295520597,0.002,3183.4,3182.7,0.905504]
[1763295520797,0.002,3183.4,3182.7,0.405504]
[1763295521176,0.002,3183.4,3182.8,0.9641]
[1763295521596,0.002,3183.4,3182.6,0.405504]
[1763295521896,0.002,3183.4,3182.7,0.43692386]
[1763295522098,0.002,3183.4,3183.0,0.5]
[1763295522694,0.002,3183.4,3182.7,0.905504]
[1763295522897,0.002,3183.4,3182.9,0.405504]
[1763295523096,0.002,3183.4,3183.3,0.4897]
[1763295523301,0.002,3183.4,3182.9,0.405504]
[1763295525002,0.4718,3183.4,3182.8,0.25906157]
[1763295525204,0.4718,3183.4,3182.9,0.24441733]
[1763295525705,0.4718,3183.4,3182.6,1.6851117]
[1763295525706,0.0794,3183.0,3182.6,1.6851117]
[1763295525908,0.4718,3183.4,3182.4,1.6851117]
[1763295526077,0.4698,3183.3,3182.4,1.6851117]
[1763295526405,0.4698,3183.3,3182.5,1.6851117]
[1763295527911,0.002,3183.4,3182.6,1.6851117]
[1763295528214,0.4718,3183.4,3182.7,0.19993103]
[1763295528374,0.4718,3183.4,3182.7,0.16851117]
[1763295528573,0.2576,3182.8,3182.7,0.16851117]
[1763295528798,0.4718,3183.4,3182.7,0.16851117]
[1763295529195,0.002,3183.4,3182.7,0.16851117]
[1763295529504,0.4718,3183.4,3182.8,0.18536229]
[1763295530423,0.2576,3182.9,3182.6,1.6851117]
[1763295531291,0.002,3183.4,3182.8,0.4897]
[1763295531516,0.002,3183.4,3182.6,1.6851117]
[1763295531685,0.4698,3183.3,3182.6,1.6851117]
[1763295532313,0.0794,3182.7,3182.6,1.6851117]
[1763295532518,0.2576,3182.7,3182.4,1.6851117]
[1763295532720,0.2576,3182.7,3182.4,1.85362287]
[1763295534798,0.002,3183.4,3182.4,1.85362287]
[1763295534799,0.1792,3183.0,3182.4,1.85362287]
[1763295535017,0.1792,3183.0,3182.5,0.03142183]
[1763295535218,0.1792,3183.0,3182.4,1.85362287]
[1763295535389,0.002,3183.4,3182.4,3.45146367]
[1763295535593,0.4718,3183.4,3182.5,1.52888717]
[1763295535792,0.4718,3183.4,3182.5,0.39514637]
[1763295536188,0.4718,3183.4,3182.5,2.08025807]
[1763295536823,0.4718,3183.4,3182.5,1.6851117]
[1763295538405,0.4718,3183.4,3182.6,1.6851117]
[1763295538628,0.4718,3183.4,3182.5,1.6851117]
[1763295539213,0.4718,3183.4,3182.6,1.6851117]
[1763295539758,0.0794,3182.7,3182.6,1.6851117]
[1763295539907,0.0794,3182.7,3182.6,1.85362287]
[1763295540538,0.1792,3183.1,3182.6,1.85362287]
[1763295541009,0.649,3183.1,3182.6,1.85362287]
[1763295541241,0.0794,3182.7,3182.6,1.6851117]
[1763295541439,0.0794,3182.7,3182.5,1.6851117]
[1763295542146,0.0794,3182.7,3182.4,1.6851117]
[1763295542664,0.0794,3182.7,3182.5,1.6851117]
[1763295542804,0.1792,3183.1,3182.5,1.6851117]
[1763295543753,0.002,3183.4,3183.0,0.4897]
[1763295544066,0.002,3183.4,3182.9,1.6851117]
[1763295544610,0.002,3183.4,3183.0,1.6851117]
[1763295545049,0.002,3183.4,3183.1,1.6851117]
[1763295545747,0.002,3183.4,3183.1,2.3348117]
[1763295545952,0.002,3183.4,3183.2,1.36722197]
[1763295546109,0.002,3183.4,3183.2,0.23348117]
[1763295548344,0.002,3183.4,3183.2,1.91859287]
[1763295550621,0.0916,3183.3,3183.2,1.91859287]
[1763295551054,0.002,3183.4,3183.2,1.91859287]
[1763295551956,0.0916,3183.3,3183.2,1.91859287]
[1763295552516,0.0916,3183.3,3183.1,1.6851117]
[1763295552517,0.5454,3183.3,3183.1,1.6851117]
[1763295552777,0.4538,3183.3,3182.6,1.6851117]
[1763295552926,0.2727,3182.7,3181.9,1.6861117]
[1763295553127,0.27,3182.0,3181.9,0.001]
[1763295553439,0.7247,3182.0,3181.9,0.001]
[1763295555238,0.27,3182.0,3181.9,0.001]
[1763295556153,0.002,3183.4,3181.9,0.001]
[1763295556154,0.1792,3182.6,3181.9,0.9207]
[1763295556355,0.1792,3182.6,3181.9,0.001]
[1763295556554,0.4683,3182.5,3181.9,0.001]
[1763295556756,0.0808,3182.0,3181.9,0.001]
[1763295557385,0.1792,3182.6,3181.9,0.9207]
[1763295557856,0.1792,3182.6,3181.9,0.4571]
[1763295558850,0.002,3183.4,3182.5,0.6509]
[1763295559031,0.4683,3183.3,3182.0,0.4636]
[1763295559359,0.405504,3183.2,3181.9,0.001]
[1763295559528,0.4683,3183.3,3181.9,0.001]
[1763295559858,0.4683,3183.2,3181.9,0.001]
[1763295560364,0.4683,3183.2,3181.9,0.4646]
[1763295566205,0.4703,3183.4,3182.0,0.405504]
[1763295566517,0.4703,3183.4,3182.1,0.6584]
[1763295566878,0.4703,3183.4,3182.2,0.4636]
[1763295567670,0.002,3183.4,3182.2,0.4636]
[1763295568619,0.4683,3183.3,3182.2,0.4636]
[1763295569387,0.002,3183.4,3182.2,0.4636]
[1763295571524,0.4683,3183.3,3182.2,0.4636]
[1763295572789,0.4683,3183.3,3182.1,0.6584]
[1763295573489,0.4683,3183.3,3182.2,0.4636]
[1763295577012,0.002,3183.4,3182.2,0.4636]
[1763295577213,0.4625,3183.3,3182.2,0.4636]
[1763295581143,0.4625,3183.3,3182.1,0.1948]
[1763295581633,0.4625,3183.3,3182.2,0.4892]
[1763295583139,0.29402814,3183.2,3182.2,0.4892]
[1763295583341,0.29402814,3183.2,3182.1,0.1948]
[1763295583518,0.4625,3183.1,3182.1,0.1948]
[1763295584314,0.002,3183.4,3182.1,0.1948]
[1763295584315,0.002,3183.4,3183.0,0.4733]
[1763295584650,0.002,3183.4,3182.2,0.9261288]
[1763295584651,0.002,3183.4,3182.3,3.3805564]
[1763295584851,0.002,3183.4,3182.4,0.42614077]
[1763295585051,0.4625,3183.3,3182.4,0.42614077]
[1763295585259,0.4625,3183.3,3182.4,0.4892]
[1763295585462,0.4625,3183.3,3182.1,0.684]
[1763295586013,0.29438632,3183.2,3182.1,0.1948]
[1763295586262,0.29443363,3183.1,3181.9,0.001]
[1763295586415,0.002,3183.4,3181.9,0.001]
[1763295586416,0.4625,3183.2,3181.9,0.001]
[1763295586615,0.29443401,3183.1,3181.9,0.4902]
[1763295586846,0.405504,3183.2,3181.9,0.001]
[1763295587032,0.0866,3182.0,3181.9,0.001]
[1763295587575,0.2649,3182.0,3181.9,0.001]
[1763295588217,0.7246,3182.0,3181.9,0.001]
[1763295593970,1.01845791,3182.0,3181.9,0.001]
[1763295594125,0.7246,3182.0,3181.9,0.001]
[1763295594922,1.130104,3182.0,3181.9,0.001]
[1763295595563,1.42363649,3182.0,3181.9,0.001]
[1763295596222,1.130104,3182.0,3181.9,0.001]
[1763295596641,1.42350231,3182.0,3181.9,0.001]
[1763295597260,1.130104,3182.0,3181.9,0.001]
[1763295597562,1.42337615,3182.0,3181.9,0.001]
[1763295602684,0.405504,3181.9,3181.5,0.001]
[1763295602884,0.0046,3181.6,3181.5,0.001]
[1763295603295,0.872604,3181.6,3181.5,0.001]
[1763295603584,0.405504,3181.5,3181.2,0.001]
[1763295603884,0.487604,3181.3,3181.2,0.001]
[1763295604278,0.950104,3181.3,3181.2,0.001]
[1763295604589,2.0838448,3181.3,3181.2,0.001]
[1763295605292,2.29222928,3181.3,3181.2,0.001]
[1763295605455,2.58491806,3181.3,3181.2,0.001]
[1763295612894,8.88491806,3181.3,3181.2,0.001]
[1763295613093,9.55885626,3181.3,3181.2,0.001]
[1763295613292,1.5446448,3181.2,3180.8,0.001]
[1763295613492,0.671304,3180.9,3180.8,0.001]
[1763295613695,0.96399278,3180.9,3180.8,0.001]
[1763295613908,5.87393358,3180.9,3180.8,0.001]
[1763295614110,6.54794206,3180.9,3180.8,0.001]
[1763295614321,3.22794206,3180.9,3180.8,0.001]
[1763295614484,5.40432528,3180.9,3180.8,0.001]
[1763295616327,3.53212528,3180.9,3180.8,0.001]
[1763295616494,0.38028878,3180.9,3180.8,0.001]
[1763295616689,0.5438,3180.9,3180.8,0.001]
[1763295616919,1.24199278,3180.9,3180.8,0.001]
[1763295617595,0.78579278,3180.9,3180.8,0.001]
[1763295617790,1.24199278,3180.9,3180.8,0.001]
[1763295618018,1.47178107,3180.9,3180.8,0.001]
[1763295619393,0.92798107,3180.9,3180.8,0.001]
[1763295619625,1.02088107,3180.9,3180.8,0.001]
[1763295620124,0.61537707,3180.9,3180.8,0.001]
[1763295620424,1.02088107,3180.9,3180.8,0.001]
[1763295622225,0.92798107,3180.9,3180.8,0.4631]
[1763295622823,0.92798107,3180.9,3180.8,0.001]
[1763295623018,1.41108107,3180.9,3180.8,0.001]
[1763295623214,1.50398107,3180.9,3180.8,0.001]
[1763295623419,1.02088107,3180.9,3180.8,0.001]
[1763295624507,2.15462187,3180.9,3180.8,0.001]
[1763295625109,2.830911,3180.9,3180.8,0.001]
[1763295625933,2.738011,3180.9,3180.8,0.001]
[1763295627433,2.834511,3180.9,3180.8,0.001]
[1763295630046,2.8358326,3180.9,3180.8,0.001]
[1763295630645,2.7393326,3180.9,3180.8,0.4631]
[1763295631342,0.29401038,3180.9,3180.8,0.9462]
[1763295631541,0.29401038,3180.9,3180.8,0.4631]
[1763295632112,0.29401038,3180.9,3180.8,0.9462]
[1763295633346,0.29438291,3180.9,3180.8,0.9462]
[1763295634345,0.69988691,3180.9,3180.8,0.9462]
[1763295636137,0.94696461,3180.9,3180.8,0.001]
[1763295637086,0.87566461,3180.9,3180.8,0.001]
[1763295637297,0.69988691,3180.9,3180.8,0.9528]
[1763295637748,0.69988691,3180.9,3180.8,0.463]
[1763295637949,0.77118691,3180.9,3180.8,0.001]
[1763295638172,1.24508691,3180.9,3180.8,0.001]
[1763295638342,3.18315403,3180.9,3180.8,0.001]
[1763295638665,0.405504,3180.7,3179.8,0.4448]
[1763295638969,0.405504,3180.5,3178.6,0.03246039]
[1763295639172,0.29438291,3180.4,3179.0,0.12699079]
[1763295639489,0.29444087,3180.3,3179.0,0.001]
[1763295639657,0.405504,3180.8,3179.2,0.182]
[1763295639858,0.29443289,3180.7,3180.2,0.462]
[1763295640061,0.29443289,3180.6,3180.2,0.462]
[1763295640267,0.29443289,3180.5,3180.2,0.462]
[1763295640469,0.29443289,3180.4,3180.2,0.462]
[1763295640669,0.29443289,3180.3,3180.2,0.4898]
[1763295641074,0.29443289,3180.3,3179.8,0.4898]
[1763295641275,0.29444771,3180.2,3179.8,0.4898]
[1763295641580,0.29444771,3180.1,3179.8,0.4898]
[1763295641747,0.29444771,3180.0,3179.8,0.4898]
[1763295641947,0.405504,3180.7,3179.9,0.462]
[1763295642182,0.405504,3180.5,3179.9,0.462]
[1763295642391,0.405504,3180.3,3179.9,0.9518]
[1763295642601,0.2944578,3180.2,3179.9,0.9518]
[1763295642764,0.2944578,3180.1,3180.0,0.4898]
[1763295643293,0.2944578,3180.1,3180.0,0.9518]
[1763295643907,0.2944578,3180.1,3179.0,0.001]
[1763295643908,0.405504,3180.0,3179.3,0.4898]
[1763295644106,0.405504,3179.8,3179.3,0.4898]
[1763295644310,0.2944578,3179.7,3179.4,0.4898]
[1763295644475,0.405504,3180.0,3179.7,0.462]
[1763295644674,0.405504,3179.8,3179.5,0.001]
[1763295644908,0.29452754,3179.7,3179.5,0.001]
[1763295645099,0.405504,3179.8,3179.6,0.462]
[1763295645304,0.29454582,3179.7,3179.6,0.462]
[1763295648480,0.405504,3180.0,3179.6,0.9518]
[1763295648680,0.29454582,3179.9,3179.6,0.9518]
[1763295648885,0.29454582,3179.8,3179.6,0.462]
[1763295649086,0.29454582,3179.7,3179.6,0.462]
[1763295649412,0.405504,3180.0,3179.6,0.462]
[1763295649596,0.405504,3179.8,3179.6,0.462]
[1763295649781,0.29454582,3179.7,3179.6,0.462]
[1763295650519,0.29454582,3179.7,3179.5,0.001]
[1763295651490,0.29454582,3179.7,3179.6,0.462]
[1763295652507,0.405504,3180.0,3179.6,0.462]
[1763295652706,0.29454582,3179.9,3179.6,0.462]
[1763295652907,0.29454582,3179.8,3179.5,0.001]
[1763295653104,0.405504,3179.9,3179.5,0.001]
[1763295653308,0.29454582,3179.8,3179.5,0.001]
[1763295653509,0.70004982,3179.9,3179.5,0.001]
[1763295653705,0.29454582,3179.8,3179.5,0.001]
[1763295655426,0.29454582,3179.8,3179.5,0.4908]
[1763295657329,0.29454582,3179.8,3179.5,0.001]
[1763295658932,0.29454582,3179.8,3179.5,0.4908]
[1763295659524,0.29454582,3179.8,3179.5,0.001]
[1763295659525,0.476804,3179.6,3179.5,0.001]
[1763295659738,0.77134982,3179.6,3179.5,0.001]
[1763295660731,1.4175748,3179.6,3179.5,0.001]
[1763295662243,2.09523483,3179.6,3179.5,0.001]
[1763295662617,2.2212824,3179.6,3179.5,0.001]
[1763295664758,3.3550232,3179.6,3179.5,0.001]
[1763295671123,9.6550232,3179.6,3179.5,0.001]
[1763295671628,8.7043192,3179.6,3179.5,0.4537]
[1763295671829,8.57835126,3179.6,3179.5,0.4537]
[1763295672040,8.98385526,3179.6,3179.5,0.4537]
[1763295672244,8.98349154,3179.6,3179.5,0.4537]
[1763295672443,8.98349154,3179.6,3179.5,0.001]
[1763295672638,9.07479154,3179.6,3179.5,0.001]
[1763295672834,9.52889154,3179.6,3179.5,0.001]
[1763295673042,9.20083951,3179.6,3179.5,0.001]
[1763295673723,9.65493951,3179.6,3179.5,0.001]
[1763295673926,9.20083951,3179.6,3179.5,0.001]
[1763295674560,8.90665741,3179.6,3179.5,0.001]
[1763295674761,9.20090314,3179.6,3179.5,0.001]
[1763295675832,9.10960314,3179.6,3179.5,0.4934]
[1763295676038,8.98355517,3179.6,3179.5,0.4934]
[1763295676930,9.05495517,3179.6,3179.5,0.001]
[1763295677263,12.84875517,3179.6,3179.5,0.001]
[1763295677466,13.97542335,3179.6,3179.5,0.001]
[1763295678368,12.84875517,3179.6,3179.5,0.001]
[1763295678741,14.54001105,3179.6,3179.5,0.001]
[1763295679155,12.84875517,3179.6,3179.5,0.001]
[1763295679343,4.8592448,3179.2,3179.1,0.001]
[1763295679550,7.45088353,3179.2,3179.1,0.001]
[1763295679749,6.79965467,3179.2,3179.1,0.001]
[1763295680273,13.47722611,3179.2,3179.1,0.001]
[1763295680431,13.47672323,3179.2,3179.1,0.001]
[1763295680838,13.09915179,3179.2,3179.1,0.001]
[1763295681742,14.79269509,3179.2,3179.1,0.001]
[1763295682156,13.09915179,3179.2,3179.1,0.001]
[1763295682571,14.51615179,3179.2,3179.1,0.001]
[1763295682780,13.09915179,3179.2,3179.1,0.001]
[1763295682980,11.56691405,3179.2,3179.1,0.001]
[1763295683286,8.67474656,3179.2,3179.1,0.001]
[1763295683482,8.70811099,3179.2,3179.1,0.001]
[1763295683671,8.96254779,3179.2,3179.1,0.001]
[1763295684189,9.43634779,3179.2,3179.1,0.001]
[1763295684364,9.84185179,3179.2,3179.1,0.001]
[1763295684767,13.16185179,3179.2,3179.1,0.001]
[1763295685555,14.00779136,3179.2,3179.1,0.001]
[1763295686089,13.16185179,3179.2,3179.1,0.001]
[1763295687902,12.01081501,3179.2,3179.1,0.001]
[1763295688103,13.46386903,3179.2,3179.1,0.001]
[1763295689313,12.61695013,3179.2,3179.1,0.001]
[1763295690417,7.27178085,3179.2,3179.1,1.1586]
[1763295690615,7.67728485,3179.2,3179.1,0.6734]
[1763295690778,8.40552165,3179.2,3179.1,0.4934]
[1763295691182,2.10552165,3179.2,3179.1,1.1586]
[1763295691617,2.51102565,3179.2,3179.1,1.1586]
[1763295691819,2.10552165,3179.2,3179.1,1.1586]
[1763295692390,2.51102565,3179.2,3179.1,1.1586]
[1763295694017,2.76212822,3179.2,3179.1,0.001]
[1763295694523,2.76212822,3179.2,3179.1,0.4934]
[1763295695817,2.83352822,3179.2,3179.1,0.001]
[1763295696022,2.76212822,3179.2,3179.1,0.4819]
[1763295697591,2.83352822,3179.2,3179.1,0.001]
[1763295698016,3.30732822,3179.2,3179.1,0.001]
[1763295698216,7.47470345,3179.2,3179.1,0.001]
[1763295698415,14.05530479,3179.2,3179.1,0.001]
[1763295698729,14.18138216,3179.2,3179.1,0.001]
[1763295699044,13.05340559,3179.2,3179.1,0.001]
[1763295699804,9.14522422,3179.2,3179.1,0.001]
[1763295700005,10.68095581,3179.2,3179.1,0.001]
[1763295700617,14.06075581,3179.2,3179.1,0.001]
[1763295701928,13.51135581,3179.2,3179.1,0.001]
[1763295702130,13.51135581,3179.2,3179.1,0.4819]
[1763295702932,13.10585181,3179.2,3179.1,0.4819]
[1763295703230,9.84475181,3179.2,3179.1,0.001]
[1763295703408,10.25025581,3179.2,3179.1,0.001]
[1763295703608,9.60722822,3179.2,3179.1,0.001]
[1763295704619,8.3708867,3179.2,3179.1,0.001]
[1763295704830,8.71452422,3179.2,3179.1,0.001]
[1763295705133,9.9680081,3179.2,3179.1,0.001]
[1763295705302,9.12002822,3179.2,3179.1,0.001]
[1763295706402,9.06212822,3179.2,3179.1,0.4819]
[1763295706608,9.91054231,3179.2,3179.1,0.4819]
[1763295707332,9.91078596,3179.2,3179.1,1.1253]
[1763295707794,3.61078596,3179.2,3179.1,1.1253]
[1763295709015,2.76212822,3179.2,3179.1,0.4819]
[1763295709215,2.76212822,3179.2,3179.1,0.001]
[1763295709425,3.30722822,3179.2,3179.1,0.001]
[1763295709641,6.62622822,3179.2,3179.1,0.001]
[1763295709837,7.75681764,3179.2,3179.1,0.001]
[1763295710003,6.62622822,3179.2,3179.1,0.001]
[1763295710205,6.75230797,3179.2,3179.1,0.001]
[1763295711136,8.44585127,3179.2,3179.1,0.001]
[1763295717027,4.17624727,3179.2,3179.1,0.6637]
[1763295717232,2.35662422,3179.2,3179.1,1.1253]
[1763295717835,2.76212822,3179.2,3179.1,0.6637]
[1763295718034,2.76212822,3179.2,3179.1,0.4819]
[1763295718511,2.82002822,3179.2,3179.1,0.001]
[1763295718709,6.13902822,3179.2,3179.1,0.001]
[1763295718915,6.62622822,3179.2,3179.1,0.001]
[1763295719416,6.75230876,3179.2,3179.1,0.001]
[1763295719919,8.44585206,3179.2,3179.1,0.001]
[1763295721016,6.20720876,3179.2,3179.1,1.1253]
[1763295721350,2.76212822,3179.2,3179.1,1.1253]
[1763295721853,3.25072822,3179.2,3179.1,0.001]
[1763295722052,3.25072822,3179.2,3179.1,0.6637]
[1763295722053,2.35662422,3179.2,3179.1,0.6637]
[1763295722355,2.76212822,3179.2,3179.1,1.1253]
[1763295722554,3.89410675,3179.2,3179.1,1.1253]
[1763295722913,3.23750018,3179.2,3179.1,1.1253]
[1763295723117,1.82079164,3179.2,3179.1,1.1253]
[1763295723438,0.69974973,3179.2,3179.1,1.1253]
[1763295723916,1.37728485,3179.2,3179.1,1.1253]
[1763295725421,1.37728485,3179.2,3179.1,0.4819]
[1763295725626,1.37728485,3179.2,3179.1,0.001]
[1763295725627,4.73324008,3179.2,3179.1,0.001]
[1763295725828,3.88422929,3179.2,3179.1,0.001]
[1763295726431,3.80892929,3179.2,3179.1,0.6537]
[1763295726717,3.80892929,3179.2,3179.1,1.1453]
[1763295726918,3.88422929,3179.2,3179.1,0.001]
[1763295727337,3.80892929,3179.2,3179.1,0.001]
[1763295727853,3.80940011,3179.2,3179.1,0.4606]
[1763295728055,2.51149647,3179.2,3179.1,1.1453]
[1763295728445,3.36033208,3179.2,3179.1,1.1453]
[1763295729847,2.51149647,3179.2,3179.1,1.1453]
[1763295730355,2.51149647,3179.2,3179.1,0.6537]
[1763295730556,2.51149647,3179.2,3179.1,1.1453]
[1763295731832,3.47752968,3179.2,3179.1,0.6537]
[1763295732031,3.47752968,3179.2,3179.1,0.4606]
[1763295732524,3.47752968,3179.2,3179.1,1.1453]
[1763295733347,3.47752968,3179.2,3179.1,0.6537]
[1763295733547,3.47752968,3179.2,3179.1,1.1453]
[1763295735363,3.47752968,3179.2,3179.1,0.6537]
[1763295735856,3.47752968,3179.2,3179.1,1.1296]
[1763295737222,2.51149647,3179.2,3179.1,1.1296]
[1763295737628,2.51314859,3179.2,3179.1,1.1296]
[1763295738851,2.10764459,3179.2,3179.1,1.1296]
[1763295739164,0.29471655,3179.2,3179.1,1.1296]
[1763295751043,0.70022055,3179.2,3179.1,1.1296]
[1763295751258,1.19652055,3179.2,3179.1,0.001]
[1763295751599,1.38935255,3179.2,3179.1,0.001]
[1763295751998,2.06795196,3179.2,3179.1,0.001]
[1763295752259,9.55489276,3179.2,3179.1,0.001]
[1763295752410,14.00587129,3179.2,3179.1,0.001]
[1763295752614,12.87389276,3179.2,3179.1,0.001]
[1763295752826,14.69352416,3179.2,3179.1,0.001]
[1763295753445,12.99998086,3179.2,3179.1,0.001]
[1763295753637,14.69352416,3179.2,3179.1,0.001]
[1763295754024,12.99998086,3179.2,3179.1,0.001]
[1763295755444,14.69607516,3179.2,3179.1,0.001]
[1763295758330,14.41798086,3179.2,3179.1,0.001]
[1763295759167,12.99998086,3179.2,3179.1,0.001]
[1763295759334,14.41798086,3179.2,3179.1,0.001]
[1763295761935,12.99998086,3179.2,3179.1,0.001]
[1763295766347,15.54652136,3179.2,3179.1,0.001]
[1763295767202,14.41798086,3179.2,3179.1,0.001]
[1763295769086,15.5463095,3179.2,3179.1,0.001]
[1763295770386,12.99998086,3179.2,3179.1,0.001]
[1763295770601,14.41798086,3179.2,3179.1,0.001]
[1763295770944,14.41713151,3179.2,3179.1,0.001]
[1763295771698,12.99913151,3179.2,3179.1,0.001]
[1763295772207,14.41713151,3179.2,3179.1,0.001]
[1763295773705,12.54042751,3179.2,3179.1,0.001]
[1763295773906,8.72011626,3179.2,3179.1,0.481]
[1763295774224,1.94507098,3179.2,3179.1,1.1389]
[1763295774423,0.2938672,3179.2,3179.1,1.1389]
[1763295774923,0.6993712,3179.2,3179.1,1.1389]